bitfinex-derivatives/quotes_SOLF0:USTF0_20241009
["timestamp","ask_amount","ask_price","bid_price","bid_amount"]
[1728466317977,3.4982,143.01,142.98,19.1188]
[1728466318871,3.498,143.02,142.99,3.4986]
[1728466319076,3.498,143.02,143.0,10.76]
[1728466319875,0.12502,143.03,143.0,10.76]
[1728466320076,3.4981,143.01,143.0,10.76]
[1728466320277,0.12502,143.03,143.0,10.76]
[1728466320578,3.4981,143.02,143.0,10.76]
[1728466326185,0.12502,143.03,143.0,10.76]
[1728466326386,3.4981,143.01,142.98,8.3588]
[1728466326585,3.4981,143.01,142.99,10.76]
[1728466326786,3.498,143.02,142.99,10.76]
[1728466327183,3.498,143.02,142.99,14.2585]
[1728466327386,0.12502,143.03,143.01,10.76]
[1728466328886,3.62282,143.03,143.01,10.76]
[1728466330681,0.12502,143.03,143.01,10.76]
[1728466330887,3.4979,143.02,143.01,10.76]
[1728466331088,3.4979,143.02,142.99,14.2585]
[1728466331885,3.4982,143.01,142.99,10.76]
[1728466332783,3.4984,143.0,142.98,4.86]
[1728466332984,3.4984,143.0,142.98,15.62]
[1728466335993,10.88502,143.03,142.98,10.76]
[1728466336188,10.76,143.02,142.97,10.76]
[1728466337392,3.4988,142.99,142.97,10.76]
[1728466339399,3.4988,142.99,142.98,10.76]
[1728466341900,4.86,143.02,142.98,10.76]
[1728466342106,4.86,143.02,143.0,10.76]
[1728466342398,4.86,143.02,142.96,8.28070117]
[1728466342603,4.86,143.02,142.99,10.76]
[1728466342805,3.4983,143.01,142.99,10.76]
[1728466343808,3.4981,143.01,142.99,10.76]
[1728466344801,3.498,143.02,143.0,10.76]
[1728466350306,3.62272,143.03,143.01,10.76]
[1728466350604,0.12502,143.03,143.02,10.76]
[1728466351012,0.12502,143.03,143.02,14.2579]
[1728466351912,0.12502,143.03,143.02,10.76]
[1728466358418,0.12502,143.03,143.0,12.1428]
[1728466358920,3.498,143.02,143.0,12.1428]
[1728466359922,3.498,143.02,143.01,10.76]
[1728466363225,0.12502,143.03,143.01,14.2581]
[1728466363523,0.12502,143.03,143.02,10.76]
[1728466364321,3.62262,143.03,143.02,10.76]
[1728466367427,0.12502,143.03,143.02,10.76]
[1728466371038,3.4979,143.02,143.01,10.76]
[1728466371334,0.12502,143.03,143.01,10.76]
[1728466371726,3.62282,143.03,143.01,10.76]
[1728466375634,3.62282,143.03,143.01,14.2581]
[1728466381739,0.12502,143.03,143.01,14.2581]
[1728466381931,0.12502,143.03,143.02,14.2579]
[1728466382632,0.12502,143.03,143.02,10.76]
[1728466384236,3.4981,143.02,143.0,1.3828]
[1728466384434,0.12502,143.03,143.0,1.3828]
[1728466384639,0.12502,143.03,143.01,10.76]
[1728466385429,3.4979,143.02,143.01,10.76]
[1728466390045,0.12502,143.03,143.01,10.76]
[1728466390250,3.62272,143.03,143.01,10.76]
[1728466394652,3.62272,143.03,143.0,4.8812]
[1728466394855,3.62272,143.03,143.01,10.76]
[1728466402661,3.4979,143.02,143.0,1.3828]
[1728466405863,0.12502,143.03,143.0,1.3828]
[1728466406056,3.4981,143.01,143.0,1.3828]
[1728466406964,3.498,143.02,143.0,12.1428]
[1728466407253,3.498,143.02,143.01,10.76]
[1728466407453,0.12502,143.03,143.01,14.2581]
[1728466407763,0.12502,143.03,143.01,15.62]
[1728466409558,0.12502,143.03,143.01,19.118]
[1728466413659,0.12502,143.03,143.01,15.62]
[1728466413861,0.12502,143.03,143.02,3.4979]
[1728466418160,0.12502,143.03,143.02,14.2579]
[1728466419352,0.12502,143.03,143.02,10.76]
[1728466419558,0.12502,143.03,143.01,4.86]
[1728466419858,0.12502,143.03,143.01,15.62]
[1728466420267,0.12502,143.03,143.02,10.76]
[1728466440471,0.12502,143.03,143.02,14.2579]
[1728466443279,3.497,143.06,143.05,10.76]
[1728466444385,3.4966,143.08,143.05,14.257]
[1728466444573,3.4966,143.08,143.07,10.76]
[1728466444776,0.12502,143.09,143.05,10.76]
[1728466444989,3.4967,143.07,143.05,10.76]
[1728466451890,3.4971,143.06,143.04,4.86]
[1728466452085,10.76,143.08,143.04,4.86]
[1728466453183,0.12502,143.09,143.04,4.86]
[1728466453184,10.88502,143.09,143.04,15.62]
[1728466453590,0.12502,143.09,143.04,15.62]
[1728466453790,3.497,143.06,143.04,15.62]
[1728466458496,3.497,143.06,143.05,10.76]
[1728466459203,3.497,143.06,143.04,15.62]
[1728466460402,3.497,143.06,143.05,10.76]
[1728466463003,3.4966,143.08,143.05,10.76]
[1728466465913,3.4967,143.07,143.05,10.76]
[1728466466907,3.4967,143.07,143.04,7.01912221]
[1728466467108,3.4967,143.07,143.05,10.76]
[1728466470715,3.4969,143.06,143.05,10.76]
[1728466472517,3.4965,143.08,143.05,14.257]
[1728466473015,0.12502,143.09,143.05,10.76]
[1728466473216,3.4965,143.08,143.05,10.76]
[1728466473416,3.4965,143.08,143.07,10.76]
[1728466474621,0.12502,143.09,143.05,10.76]
[1728466474815,3.4967,143.07,143.05,10.76]
[1728466476420,3.4967,143.07,143.06,10.76]
[1728466476713,3.4965,143.08,143.06,10.76]
[1728466478915,0.12502,143.09,143.06,10.76]
[1728466479120,3.4967,143.07,143.06,10.76]
[1728466479617,0.12502,143.09,143.05,10.76]
[1728466479819,3.4969,143.06,143.05,10.76]
[1728466480023,0.12502,143.09,143.04,10.76]
[1728466480218,3.4974,143.05,143.02,80.18668936]
[1728466480419,0.12502,143.09,143.02,76.68888936]
[1728466480618,10.76,143.07,143.02,87.44888936]
[1728466480918,3.4974,143.05,143.02,87.44888936]
[1728466481723,3.4974,143.05,143.03,10.76]
[1728466484119,10.76,143.07,143.02,71.82888936]
[1728466484326,7.714,143.08,143.02,82.58888936]
[1728466484520,10.76,143.06,143.02,82.58888936]
[1728466485125,3.4976,143.03,143.02,82.58888936]
[1728466489435,3.4976,143.03,143.02,10.76]
[1728466491530,3.4984,143.0,142.99,10.76]
[1728466491946,10.76,143.04,142.99,10.76]
[1728466492130,3.4978,143.03,143.01,10.76]
[1728466492434,15.62,143.05,143.01,10.76]
[1728466492821,3.4981,143.02,143.01,10.76]
[1728466501249,3.4982,143.01,143.0,10.76]
[1728466501537,10.76,143.04,142.99,1.3384]
[1728466502243,3.4984,143.0,142.99,1.3384]
[1728466502539,3.4984,143.0,142.99,12.0984]
[1728466510249,4.86,143.04,142.99,12.0984]
[1728466511047,3.4982,143.01,142.99,12.0984]
[1728466513050,3.498,143.02,143.0,10.76]
[1728466514254,4.84,143.05,143.01,10.76]
[1728466515258,3.4978,143.03,143.01,10.76]
[1728466517055,3.4979,143.02,143.01,10.76]
[1728466517845,3.4979,143.02,142.99,1.3384]
[1728466518049,4.84,143.05,142.99,1.3384]
[1728466518050,3.4981,143.01,143.0,10.76]
[1728466518253,10.76,143.03,142.99,1.3384]
[1728466518855,10.76,143.04,142.99,1.3384]
[1728466519055,10.76,143.04,142.97,76.83440596]
[1728466519255,10.76,143.04,142.98,10.76]
[1728466519454,3.4985,143.0,142.98,10.76]
[1728466521159,3.4982,143.01,142.99,10.76]
[1728466525061,3.4984,143.0,142.99,10.76]
[1728466531365,3.4982,143.01,142.99,10.76]
[1728466531564,3.4982,143.01,143.0,10.76]
[1728466537460,3.4982,143.01,142.97,76.83440596]
[1728466537461,3.4985,143.0,142.97,8.48402]
[1728466537668,3.4985,143.0,142.98,10.76]
[1728466541165,3.4985,143.0,142.99,10.76]
[1728466546078,3.4982,143.01,142.99,10.76]
[1728466551584,3.498,143.02,143.0,10.76]
[1728466552786,15.6,143.05,143.0,10.76]
[1728466552977,3.4981,143.01,142.99,10.76]
[1728466561778,3.4984,143.0,142.99,10.76]
[1728466566490,4.84,143.04,142.99,10.76]
[1728466566691,3.4982,143.01,142.99,10.76]
[1728466567093,4.84,143.04,142.99,10.76]
[1728466567296,3.498,143.02,142.99,10.76]
[1728466568293,3.4981,143.01,142.99,10.76]
[1728466568493,4.84,143.04,142.97,0.12502]
[1728466568695,10.76,143.03,142.97,0.12502]
[1728466569502,3.4988,142.99,142.97,0.12502]
[1728466569801,3.4988,142.99,142.98,10.76]
[1728466573394,2.7715,143.03,142.98,10.76]
[1728466573395,3.4982,143.01,142.98,10.76]
[1728466573595,3.4982,143.01,143.0,10.76]
[1728466576596,1.4144,143.03,143.0,10.76]
[1728466576802,4.84,143.06,143.02,10.76]
[1728466577297,3.4977,143.03,143.02,10.76]
[1728466578601,3.498,143.02,143.0,10.76]
[1728466589008,3.4981,143.01,143.0,10.76]
[1728466591615,3.4984,143.0,142.99,10.76]
[1728466594608,10.76,143.05,142.99,10.76]
[1728466594609,3.4982,143.01,142.99,10.76]
[1728466594807,3.4982,143.01,143.0,10.76]
[1728466596716,15.6,143.04,142.99,10.76]
[1728466597412,3.4985,143.0,142.99,10.76]
[1728466601920,3.4979,143.02,142.99,14.2585]
[1728466602220,3.4979,143.02,143.01,10.76]
[1728466607727,3.4977,143.03,143.01,10.76]
[1728466608817,3.4979,143.02,143.01,10.76]
[1728466610518,4.84,143.05,142.99,1.331]
[1728466610715,3.4982,143.01,143.0,10.76]
[1728466615827,3.4978,143.03,143.0,14.2584]
[1728466616032,3.4978,143.03,143.02,10.76]
[1728466619331,3.4975,143.04,143.02,10.76]
[1728466623040,3.4975,143.04,143.03,10.76]
[1728466628941,69.90850473,143.06,143.01,4.84]
[1728466629132,3.4978,143.03,143.02,10.76]
[1728466629933,3.4978,143.03,142.99,12.091]
[1728466629934,3.4984,143.0,142.99,12.091]
[1728466630339,3.4984,143.0,142.97,6.34722]
[1728466630643,15.6,143.04,142.97,0.12502]
[1728466630644,3.4989,142.98,142.97,0.12502]
[1728466634534,3.4984,143.0,142.97,0.12502]
[1728466634738,15.6,143.01,142.97,0.12502]
[1728466635246,3.4989,142.98,142.97,0.12502]
[1728466645558,14.2589,142.98,142.97,0.12502]
[1728466646163,3.4989,142.98,142.97,0.12502]
[1728466648865,3.4989,142.98,142.97,10.88502]
[1728466654171,3.4989,142.98,142.97,0.12502]
[1728466654555,15.6,142.98,142.92,1.3947]
[1728466654880,3.5001,142.93,142.92,12.1547]
[1728466656469,3.5001,142.93,142.92,10.76]
[1728466668275,15.6,142.98,142.92,10.76]
[1728466668485,3.4999,142.94,142.91,75.49838358]
[1728466673389,3.4999,142.94,142.93,10.76]
[1728466675274,4.84,142.98,142.93,10.76]
[1728466675474,3.4994,142.96,142.95,10.76]
[1728466680591,4.84,143.01,142.95,10.76]
[1728466680795,4.84,143.01,142.98,10.76]
[1728466681694,3.499,142.98,142.97,10.76]
[1728466684297,3.4984,143.0,142.97,14.259]
[1728466684499,4.84,143.02,142.99,10.76]
[1728466684795,3.4981,143.02,142.99,14.2586]
[1728466684998,3.4981,143.02,143.01,10.76]
[1728466685798,3.4982,143.01,142.98,3.4988]
[1728466685990,3.4982,143.01,143.0,10.76]
[1728466686494,0.12502,143.03,143.0,10.76]
[1728466686698,0.12502,143.03,143.02,10.76]
[1728466691905,3.62262,143.03,143.02,10.76]
[1728466698504,0.12502,143.03,143.0,4.84420842]
[1728466698808,0.12502,143.03,143.02,10.76]
[1728466699202,3.62262,143.03,143.02,10.76]
[1728466711212,0.12502,143.03,143.0,1.3867]
[1728466711516,3.4981,143.01,143.0,1.3867]
[1728466712709,0.12502,143.03,143.0,12.1467]
[1728466712915,3.498,143.02,143.0,12.1467]
[1728466713415,3.498,143.02,143.01,10.76]
[1728466717214,0.12502,143.03,143.0,12.1467]
[1728466717519,3.4981,143.01,142.99,10.76]
[1728466718123,0.12502,143.03,142.99,10.76]
[1728466718313,3.4984,143.0,142.99,10.76]
[1728466718710,10.76,143.0,142.93,3.4999]
[1728466718914,10.76,143.0,142.86,93.94978926]
[1728466718915,15.6,143.0,142.94,10.76]
[1728466719315,3.4993,142.97,142.94,10.76]
[1728466719918,15.6,143.0,142.94,10.76]
[1728466721019,3.4993,142.97,142.94,10.76]
[1728466721221,4.84,143.0,142.96,10.76]
[1728466721624,3.4987,142.99,142.96,10.76]
[1728466722219,3.4989,142.98,142.96,10.76]
[1728466725631,3.4989,142.98,142.95,14.2595]
[1728466726020,3.4991,142.98,142.95,10.76]
[1728466726225,15.6,143.0,142.95,10.76]
[1728466727431,3.4992,142.97,142.95,10.76]
[1728466727831,3.4992,142.97,142.94,3.4996]
[1728466728032,3.4992,142.97,142.94,14.2596]
[1728466730629,3.4995,142.96,142.93,3.4999]
[1728466730828,3.4995,142.96,142.94,10.76]
[1728466731235,15.6,143.0,142.92,6.1894]
[1728466731436,3.4998,142.95,142.92,20.4496]
[1728466732446,10.76,142.99,142.94,10.76]
[1728466732748,3.4995,142.96,142.94,10.76]
[1728466735341,3.4995,142.96,142.95,10.76]
[1728466736150,3.4995,142.96,142.94,10.76]
[1728466740345,15.6,143.0,142.94,10.76]
[1728466740545,1.4305,143.01,142.97,10.76]
[1728466740746,4.96502,143.03,143.0,10.76]
[1728466740951,3.4981,143.01,143.0,10.76]
[1728466745557,3.4981,143.01,142.98,17.83047165]
[1728466745750,3.4981,143.01,142.98,14.33167165]
[1728466746450,3.4984,143.0,142.98,14.33167165]
[1728466749862,10.88502,143.03,142.97,1.4485]
[1728466750066,3.4988,142.99,142.97,12.2085]
[1728466750463,3.4988,142.99,142.97,15.70034925]
[1728466753665,3.4985,143.0,142.97,19.19944925]
[1728466755461,0.12502,143.03,142.99,10.76]
[1728466755662,3.4984,143.0,142.99,10.76]
[1728466757158,3.4984,143.0,142.98,10.76]
[1728466763569,3.4986,142.99,142.98,10.76]
[1728466763777,3.4986,142.99,142.97,4.94034925]
[1728466765774,10.76,143.02,142.97,1.4485]
[1728466766373,10.76,143.02,142.97,5.01907241]
[1728466766971,3.4988,142.99,142.97,5.01907241]
[1728466767678,3.4988,142.99,142.98,10.76]
[1728466777189,3.4988,142.99,142.97,9.85907241]
[1728466777585,3.4988,142.99,142.98,10.76]
[1728466781295,0.12502,143.03,142.98,10.76]
[1728466781591,0.12502,143.03,143.02,10.76]
[1728466785390,4.96502,143.09,143.02,14.2577]
[1728466785391,3.497,143.06,143.02,14.2577]
[1728466785590,3.497,143.06,143.05,10.76]
[1728466791207,3.497,143.06,143.05,14.27566888]
[1728466793903,3.4969,143.07,143.05,14.27566888]
[1728466794202,3.4969,143.07,143.06,10.76]
[1728466795813,0.12502,143.09,143.04,4.84]
[1728466796004,3.4971,143.06,143.04,4.84]
[1728466796208,3.4971,143.06,143.05,10.76]
[1728466797910,3.4965,143.08,143.04,4.84]
[1728466798107,0.12502,143.09,143.05,10.76]
[1728466798909,3.4969,143.06,143.05,10.76]
[1728466806311,0.12502,143.09,143.05,17.80608825]
[1728466806614,0.12502,143.09,143.08,10.76]
[1728466807115,63.11756452,143.13,143.08,10.76]
[1728466807422,63.11756452,143.13,143.12,10.76]
[1728466807716,3.4952,143.13,143.12,10.76]
[1728466817619,3.4956,143.12,143.09,4.8947]
[1728466817818,3.4956,143.12,143.11,15.6]
[1728466818821,3.4956,143.12,143.11,10.76]
[1728466826334,0.12502,143.15,143.09,1.3987]
[1728466826525,0.12502,143.15,143.11,10.76]
[1728466826722,15.72502,143.15,143.11,10.76]
[1728466826928,3.4954,143.12,143.11,10.76]
[1728466828528,3.4954,143.12,143.08,4.84]
[1728466828737,4.96502,143.15,143.1,10.76]
[1728466828738,15.72502,143.15,143.1,10.76]
[1728466829233,3.4957,143.11,143.1,10.76]
[1728466833334,4.96502,143.15,143.1,10.76]
[1728466833537,0.12502,143.15,143.13,10.76]
[1728466833936,3.495,143.14,143.13,10.76]
[1728466839639,0.12502,143.15,143.07,4.84]
[1728466839834,3.4961,143.1,143.07,8.3366]
[1728466840040,3.4961,143.1,143.09,10.76]
[1728466840235,0.12502,143.15,143.09,10.76]
[1728466840435,3.4958,143.11,143.08,3.4964]
[1728466840940,0.12502,143.15,143.08,3.4964]
[1728466841148,0.12502,143.15,143.12,10.76]
[1728466841934,3.4952,143.13,143.12,10.76]
[1728466842744,3.4956,143.12,143.11,10.76]
[1728466852046,10.88502,143.15,143.1,10.76]
[1728466852640,3.4957,143.11,143.1,10.76]
[1728466858150,3.4956,143.12,143.1,10.76]
[1728466858346,3.4956,143.12,143.11,10.76]
[1728466869864,3.4953,143.13,143.11,10.76]
[1728466870064,3.4953,143.13,143.12,10.76]
[1728466884575,0.12502,143.15,143.11,10.76]
[1728466884778,3.4957,143.12,143.11,10.76]
[1728466886071,3.4951,143.14,143.1,10.76]
[1728466886370,0.12502,143.15,143.1,10.76]
[1728466886775,3.4957,143.11,143.1,10.76]
[1728466887178,4.96502,143.15,143.08,4.84]
[1728466887378,3.4961,143.1,143.08,4.84]
[1728466887683,3.4961,143.1,143.09,10.76]
[1728466897586,10.76,143.14,143.07,4.84]
[1728466897786,3.4963,143.09,143.07,4.84]
[1728466897986,3.4963,143.09,143.08,10.76]
[1728466898783,4.96502,143.15,143.08,10.76]
[1728466899088,4.96502,143.15,143.12,10.76]
[1728466899289,0.12502,143.15,143.13,10.76]
[1728466899483,3.495,143.14,143.13,10.76]
[1728466923005,3.495,143.14,143.1,8.3358]
[1728466923192,3.495,143.14,143.13,10.76]
[1728466924000,0.12502,143.15,143.13,14.2551]
[1728466924201,0.12502,143.15,143.14,10.76]
[1728466928010,3.61972,143.15,143.14,10.76]
[1728466939830,3.61972,143.15,143.11,11.0186]
[1728466940021,3.61972,143.15,143.14,10.76]
[1728466964344,0.12502,143.15,143.1,1.4038]
[1728466964547,0.12502,143.15,143.13,10.76]
[1728466965250,3.495,143.14,143.13,10.76]
[1728466967855,3.61992,143.15,143.13,10.76]
[1728466968055,3.61992,143.15,143.14,10.76]
[1728466973454,0.12502,143.15,143.13,10.76]
[1728466973661,3.495,143.14,143.13,10.76]
[1728466986272,0.12502,143.15,143.13,10.76]
[1728466986578,3.61992,143.15,143.13,10.76]
[1728466999381,0.12502,143.15,143.13,10.76]
[1728466999585,3.495,143.14,143.13,10.76]
[1728467002288,0.12502,143.15,143.1,1.4038]
[1728467002484,10.88502,143.15,143.1,1.4038]
[1728467002788,3.4957,143.11,143.1,12.1638]
[1728467002981,3.4957,143.11,143.1,10.76]
[1728467003774,3.4959,143.1,143.09,4.82]
[1728467003979,3.4959,143.1,143.09,15.58]
[1728467004785,3.4952,143.13,143.1,3.4958]
[1728467004984,3.4952,143.13,143.12,10.76]
[1728467007379,0.12502,143.15,143.09,4.82]
[1728467007585,3.4956,143.12,143.09,8.316]
[1728467007780,3.4956,143.12,143.11,10.76]
[1728467009396,3.4956,143.12,143.1,4.82]
[1728467009598,3.4956,143.12,143.11,10.76]
[1728467009982,3.4956,143.12,143.1,4.82]
[1728467010291,3.4956,143.12,143.11,10.76]
[1728467011988,3.4956,143.12,143.09,3.496]
[1728467012290,3.4956,143.12,143.11,10.76]
[1728467021504,0.12502,143.15,143.11,10.76]
[1728467021699,3.4953,143.13,143.1,8.3159]
[1728467023507,3.4953,143.13,143.12,10.76]
[1728467034210,0.12502,143.15,143.12,10.76]
[1728467034507,3.4951,143.14,143.1,4.82]
[1728467035005,3.4951,143.14,143.11,3.4956]
[1728467038413,3.4951,143.14,143.13,10.76]
[1728467041716,3.4951,143.14,143.11,3.4956]
[1728467041913,3.495,143.14,143.13,10.76]
[1728467045620,0.12502,143.15,143.13,14.2551]
[1728467045815,0.12502,143.15,143.14,10.76]
[1728467046717,0.12502,143.15,143.14,14.255]
[1728467047523,0.12502,143.15,143.14,10.76]
[1728467049018,0.12502,143.21,143.14,10.76]
[1728467049215,0.12502,143.21,143.2,10.76]
[1728467049919,0.12502,143.21,143.16,4.82]
[1728467050116,0.12502,143.21,143.17,10.76]
[1728467050318,3.4941,143.18,143.17,10.76]
[1728467051016,3.4941,143.18,143.16,4.82]
[1728467051217,3.4941,143.18,143.17,10.76]
[1728467053222,3.4941,143.18,143.15,3.4947]
[1728467053423,3.4941,143.18,143.17,10.76]
[1728467053620,3.4943,143.18,143.17,10.76]
[1728467054825,3.4947,143.17,143.14,4.82]
[1728467055026,15.70502,143.21,143.15,10.76]
[1728467055626,3.4949,143.16,143.15,10.76]
[1728467055828,10.76,143.19,143.14,10.76]
[1728467056226,3.4951,143.15,143.14,10.76]
[1728467063432,3.4949,143.16,143.14,10.76]
[1728467064133,10.76,143.19,143.14,10.76]
[1728467064434,3.4951,143.15,143.14,10.76]
[1728467070540,3.4951,143.15,143.12,77.60048511]
[1728467070739,3.4951,143.15,143.14,10.76]
[1728467080441,3.4955,143.14,143.12,74.10478511]
[1728467080642,3.4955,143.14,143.13,10.76]
[1728467081238,3.4952,143.15,143.13,10.76]
[1728467085539,4.82,143.19,143.13,10.76]
[1728467085851,3.4953,143.14,143.13,10.76]
[1728467087048,3.4953,143.14,143.12,80.04478511]
[1728467088856,3.4957,143.13,143.12,10.76]
[1728467089049,1.3088,143.18,143.13,10.76]
[1728467089656,3.4947,143.17,143.13,10.76]
[1728467089856,12.0688,143.18,143.13,10.76]
[1728467091558,1.3088,143.18,143.13,10.76]
[1728467092459,3.4953,143.15,143.13,10.76]
[1728467092657,1.3088,143.18,143.13,10.76]
[1728467093554,3.4953,143.14,143.13,10.76]
[1728467094255,3.4952,143.15,143.13,10.76]
[1728467097961,1.3088,143.18,143.13,10.76]
[1728467098655,3.4952,143.15,143.13,10.76]
[1728467100760,3.4952,143.15,143.14,10.76]
[1728467101659,3.4952,143.15,143.13,10.76]
[1728467104261,3.4955,143.14,143.11,4.9221]
[1728467104462,12.0688,143.18,143.11,17.0061]
[1728467104764,10.76,143.16,143.11,12.1861]
[1728467105062,3.4957,143.13,143.11,12.1861]
[1728467105964,3.4952,143.15,143.12,14.2556]
[1728467106173,69.85671013,143.17,143.14,10.76]
[1728467107359,3.4951,143.15,143.14,10.76]
[1728467111256,3.4953,143.14,143.13,10.76]
[1728467115975,86.7395486,143.18,143.09,0.12502]
[1728467115976,10.76,143.17,143.09,0.12502]
[1728467116179,10.76,143.16,143.1,10.76]
[1728467116677,3.496,143.12,143.1,10.76]
[1728467118880,10.76,143.16,143.1,10.76]
[1728467119180,3.496,143.11,143.1,10.76]
[1728467124284,3.4963,143.1,143.09,0.12502]
[1728467124577,3.4963,143.1,143.09,10.88502]
[1728467126079,3.4962,143.11,143.09,10.88502]
[1728467126279,3.4962,143.11,143.1,10.76]
[1728467130285,3.4955,143.14,143.11,3.4959]
[1728467130490,15.58,143.17,143.12,10.76]
[1728467130885,3.4957,143.13,143.12,10.76]
[1728467140090,1.3088,143.18,143.12,10.76]
[1728467140291,1.3088,143.18,143.15,10.76]
[1728467141492,3.4949,143.16,143.15,10.76]
[1728467143198,0.12502,143.21,143.15,10.76]
[1728467143199,4.82,143.2,143.15,10.76]
[1728467143394,15.70502,143.21,143.13,8.38004826]
[1728467143595,15.70502,143.21,143.15,10.76]
[1728467143900,10.76,143.18,143.13,8.38004826]
[1728467144204,74.78408935,143.21,143.13,10.76]
[1728467144508,10.76,143.18,143.13,10.76]
[1728467144697,15.58,143.18,143.13,10.76]
[1728467146406,3.4953,143.14,143.13,10.76]
[1728467153008,80.72408935,143.21,143.13,14.19960618]
[1728467153303,4.82,143.2,143.16,10.76]
[1728467153510,15.58,143.2,143.15,10.76]
[1728467154006,3.4947,143.17,143.15,10.76]
[1728467154206,15.58,143.2,143.13,3.43960618]
[1728467154406,15.58,143.2,143.14,10.76]
[1728467154606,3.495,143.16,143.14,10.76]
[1728467157810,15.58,143.2,143.13,3.43960618]
[1728467158011,15.58,143.2,143.15,10.76]
[1728467159517,3.4948,143.16,143.15,10.76]
[1728467162712,10.76,143.18,143.12,73.15065519]
[1728467162912,10.76,143.18,143.13,10.76]
[1728467163409,3.4952,143.15,143.14,10.76]
[1728467164613,12.0716,143.19,143.12,73.15065519]
[1728467164914,3.4955,143.14,143.13,10.76]
[1728467165414,3.4952,143.15,143.13,10.76]
[1728467165715,10.76,143.18,142.96,3.21264939]
[1728467166011,3.4955,143.14,143.12,10.76]
[1728467166212,15.58,143.17,143.12,10.76]
[1728467167315,15.58,143.17,143.1,4.82]
[1728467167511,4.82,143.17,143.11,10.76]
[1728467167710,10.76,143.16,143.11,10.76]
[1728467168813,3.4961,143.11,143.09,10.88502]
[1728467169501,3.4963,143.1,143.09,0.12502]
[1728467169706,3.4963,143.1,143.09,10.88502]
[1728467177614,15.58,143.14,143.09,10.88502]
[1728467177817,3.4959,143.12,143.11,10.76]
[1728467181518,3.4959,143.12,143.09,0.12502]
[1728467181822,3.4963,143.1,143.09,0.12502]
[1728467182034,78.20606224,143.1,143.09,0.12502]
[1728467188029,3.4974,143.06,143.04,10.76]
[1728467190119,3.4974,143.06,143.05,10.76]
[1728467190327,3.4971,143.07,143.05,10.76]
[1728467190530,3.4971,143.07,143.06,10.76]
[1728467191333,3.4971,143.07,143.05,10.76]
[1728467192322,3.4971,143.07,143.04,3.4976]
[1728467192528,3.4971,143.07,143.05,10.76]
[1728467197338,3.4971,143.07,143.04,3.4976]
[1728467197637,3.4971,143.07,143.05,10.76]
[1728467199936,3.4971,143.07,143.04,3.4976]
[1728467200337,3.4971,143.07,143.05,10.76]
[1728467201332,3.4973,143.06,143.05,10.76]